bitfinex/quotes_BTCUSD_20250308
["timestamp","ask_amount","ask_price","bid_price","bid_amount"]
[1741404723566,7.8e-07,86079.0,86078.0,0.48381305]
[1741404725981,0.01161778,86079.0,86078.0,0.12604905]
[1741404726142,0.243964,86078.0,86076.0,0.1138]
[1741404726355,7.8e-07,86079.0,86076.0,0.1138]
[1741404726712,7.8e-07,86079.0,86078.0,0.0119562]
[1741404726852,0.243941,86087.0,86081.0,0.01451411]
[1741404727257,0.243946,86085.0,86081.0,0.00289811]
[1741404727455,0.011616,86084.0,86081.0,0.00289811]
[1741404728906,0.011616,86082.0,86081.0,0.00289811]
[1741404729509,0.04771544,86082.0,86081.0,0.00289811]
[1741404729844,0.11001544,86082.0,86081.0,0.00289811]
[1741404730048,0.26331629,86082.0,86052.0,0.11376]
[1741404730265,0.244034,86053.0,86052.0,0.11376]
[1741404730823,0.01162,86056.0,86052.0,0.11376]
[1741404731023,0.01162,86058.0,86051.0,0.1138]
[1741404731453,0.01162,86055.0,86051.0,0.1138]
[1741404732691,0.24406,86044.0,86043.0,0.00040248]
[1741404732893,0.24406,86044.0,86043.0,0.11420248]
[1741404733338,0.244054,86047.0,86043.0,0.11420248]
[1741404733756,0.011621,86047.0,86043.0,0.11420248]
[1741404734027,0.01162,86052.0,86043.0,0.12582448]
[1741404734198,0.01162,86053.0,86048.0,0.011621]
[1741404735413,0.01162,86052.0,86047.0,0.011621]
[1741404736007,0.01162,86052.0,86045.0,0.011621]
[1741404736327,0.011621,86051.0,86045.0,0.011621]
[1741404736563,0.01162,86052.0,86047.0,0.011621]
[1741404737141,0.011621,86051.0,86045.0,0.011621]
[1741404737322,0.011621,86051.0,86046.0,0.011621]
[1741404737520,0.10370606,86053.0,86050.0,0.011621]
[1741404737724,0.10370606,86053.0,86052.0,0.01162]
[1741404737950,0.10370606,86053.0,86051.0,0.23242]
[1741404738265,0.11532606,86053.0,86047.0,0.011621]
[1741404738422,0.011621,86049.0,86047.0,0.0003394]
[1741404738790,0.011621,86048.0,86047.0,0.0003394]
[1741404740443,0.244038,86053.0,86047.0,0.0003394]
[1741404740555,0.244038,86053.0,86048.0,0.232428]
[1741404740963,0.232386,86064.0,86056.0,0.244026]
[1741404740964,0.00859057,86062.0,86056.0,0.244026]
[1741404741366,0.232397,86060.0,86054.0,0.01162]
[1741404741567,0.011619,86061.0,86054.0,0.01162]
[1741404741776,0.01360422,86060.0,86056.0,0.01162]
[1741404742289,0.00892854,86068.0,86056.0,0.01162]
[1741404742497,0.0130302,86068.0,86056.0,0.01162]
[1741404742701,0.232371,86070.0,86056.0,0.01162]
[1741404742911,0.011618,86071.0,86056.0,0.01162]
[1741404743135,0.23237,86070.0,86056.0,0.01162]
[1741404743343,0.011618,86071.0,86056.0,0.01162]
[1741404743344,0.10370606,86061.0,86059.0,0.244015]
[1741404743543,0.10370606,86061.0,86060.0,0.011619]
[1741404745475,0.01360021,86070.0,86065.0,0.011619]
[1741404745888,0.33606206,86075.0,86066.0,0.011618]
[1741404746377,0.33606206,86075.0,86070.0,0.011618]
[1741404747207,0.34964225,86075.0,86070.0,0.011618]
[1741404747442,0.011618,86069.0,86062.0,0.011619]
[1741404747688,0.243998,86066.0,86060.0,0.0751]
[1741404747947,0.011619,86065.0,86064.0,6.308e-05]
[1741404748651,0.0726575,86065.0,86064.0,6.308e-05]
[1741404748891,0.14949835,86065.0,86064.0,8e-08]
[1741404749121,0.12449835,86065.0,86064.0,8e-08]
[1741404750076,0.13313324,86065.0,86064.0,8e-08]
[1741404750310,0.14767409,86065.0,86064.0,8e-08]
[1741404753836,0.14767409,86065.0,86064.0,0.00100008]
[1741404755700,0.17267409,86065.0,86064.0,0.00100008]
[1741404755909,0.244049,86048.0,86047.0,0.0003394]
[1741404756109,0.2800875,86048.0,86047.0,0.0003394]
[1741404757520,0.29462835,86048.0,86047.0,0.0003394]
[1741404758061,0.2800875,86048.0,86047.0,0.0003394]
[1741404760857,0.30283506,86048.0,86047.0,0.0003394]
[1741404761076,0.0360385,86048.0,86047.0,0.0003394]
[1741404761326,0.011621,86051.0,86047.0,0.0003394]
[1741404761563,0.011621,86048.0,86047.0,0.0003394]
[1741404761797,0.15133065,86048.0,86047.0,0.0003394]
[1741404762009,0.10367115,86048.0,86047.0,0.0464394]
[1741404762418,0.34772015,86048.0,86047.0,0.0003394]
[1741404762838,0.38383035,86048.0,86047.0,0.0003394]
[1741404764808,0.2801592,86048.0,86047.0,0.0003394]
[1741404767053,0.30182395,86048.0,86047.0,0.0003394]
[1741404768884,0.05777495,86048.0,86047.0,0.1257394]
[1741404769086,0.05777495,86048.0,86047.0,0.1373604]
[1741404769300,0.05777495,86048.0,86047.0,0.0003394]
[1741404769509,0.06939595,86048.0,86047.0,0.0003394]
[1741404774395,0.0477312,86048.0,86047.0,0.0003394]
[1741404777675,0.06942467,86048.0,86047.0,0.0003394]
[1741404784001,0.06942467,86048.0,86047.0,0.0815394]
[1741404784232,0.06942467,86048.0,86047.0,0.1301394]
[1741404785128,0.06942467,86048.0,86047.0,0.0003394]
[1741404785366,0.0477312,86048.0,86047.0,0.0003394]
[1741404786141,0.0361102,86048.0,86047.0,0.0003394]
[1741404786347,0.011621,86049.0,86047.0,0.0003394]
[1741404786592,0.2801592,86048.0,86047.0,0.0003394]
[1741404786838,0.09697756,86048.0,86047.0,0.0003394]
[1741404787804,0.0361102,86048.0,86047.0,0.0003394]
[1741404788713,0.05783329,86048.0,86047.0,0.0003394]
[1741404789360,0.06945429,86048.0,86047.0,0.0003394]
[1741404790086,0.0477312,86048.0,86047.0,0.0003394]
[1741404791008,0.0361102,86048.0,86047.0,0.0923604]
[1741404791232,0.0001697,86064.0,86063.0,0.324406]
[1741404791498,0.03635397,86064.0,86059.0,0.1138]
[1741404791723,0.244015,86060.0,86059.0,0.1138]
[1741404791942,0.0001697,86064.0,86062.0,0.011619]
[1741404792162,0.0001697,86064.0,86063.0,0.129]
[1741404792689,0.03635435,86064.0,86063.0,0.129]
[1741404792912,0.0001697,86064.0,86063.0,0.129]
[1741404793302,0.03635435,86064.0,86063.0,0.140619]
[1741404793918,0.03635435,86064.0,86063.0,0.129]
[1741404794092,0.04797335,86064.0,86063.0,0.129]
[1741404794922,0.03635435,86064.0,86063.0,0.140619]
[1741404795244,0.03635435,86064.0,86063.0,0.129]
[1741404795866,0.05804535,86064.0,86063.0,0.140619]
[1741404796073,0.0218607,86064.0,86063.0,0.140619]
[1741404796836,0.0001697,86064.0,86063.0,0.140619]
[1741404799295,0.0001697,86064.0,86063.0,0.14178083]
[1741404800923,4.1e-07,86065.0,86063.0,0.26782988]
[1741404801141,0.0001697,86078.0,86077.0,0.243967]
[1741404801334,0.0001697,86078.0,86077.0,0.486727]
[1741404801960,0.23741706,86107.0,86097.0,0.011614]
[1741404802161,6.755e-05,86100.0,86098.0,0.0804]
[1741404803131,6.755e-05,86100.0,86099.0,0.243904]
[1741404804267,6.755e-05,86100.0,86098.0,0.0804]
[1741404805477,6.755e-05,86100.0,86098.0,0.092014]
[1741404805676,6.755e-05,86100.0,86099.0,0.243904]
[1741404806061,6.755e-05,86100.0,86099.0,0.324804]
[1741404812241,6.755e-05,86100.0,86099.0,0.49735305]
[1741404813266,0.00023735,86100.0,86099.0,0.49735305]
[1741404817309,0.00023735,86100.0,86099.0,0.26506305]
[1741404817847,0.00023735,86100.0,86099.0,0.24112]
[1741404818246,0.00023735,86100.0,86099.0,0.252734]
[1741404819202,0.00023735,86100.0,86099.0,0.1274]
[1741404819403,0.00023735,86100.0,86099.0,0.11372]
[1741404820438,0.01845131,86100.0,86099.0,0.11372]
[1741404820656,0.03006531,86100.0,86099.0,0.11372]
[1741404821086,0.01845131,86100.0,86099.0,0.11372]
[1741404821494,0.0313434,86100.0,86099.0,0.11372]
[1741404822066,0.232293,86098.0,86090.0,0.278814]
[1741404822287,0.011615,86089.0,86084.0,0.243946]
[1741404822606,0.011615,86094.0,86087.0,0.011616]
[1741404823034,0.011614,86097.0,86089.0,0.011615]
[1741404823274,0.00023735,86100.0,86095.0,0.011615]
[1741404823489,0.00023735,86100.0,86096.0,0.11372]
[1741404823692,0.00023735,86100.0,86098.0,0.011614]
[1741404824451,0.00023735,86100.0,86099.0,0.0759]
[1741404824648,0.00023735,86100.0,86099.0,0.0762392]
[1741404824859,0.01294029,86100.0,86099.0,0.0762392]
[1741404825112,0.00023735,86100.0,86099.0,0.1212392]
[1741404825273,0.00023735,86100.0,86099.0,0.13401451]
[1741404829268,0.01845079,86100.0,86099.0,0.13401451]
[1741404829467,0.01845079,86100.0,86099.0,0.1328532]
[1741404829882,0.01845079,86100.0,86099.0,0.2465332]
[1741404830087,0.01845079,86100.0,86099.0,0.2015332]
[1741404830294,0.01845079,86100.0,86099.0,0.1140192]
[1741404830572,0.0661363,86100.0,86099.0,0.1140192]
[1741404830771,0.0545223,86100.0,86099.0,0.1140192]
[1741404831174,0.0661363,86100.0,86099.0,0.1140192]
[1741404831379,0.0661363,86100.0,86099.0,0.3579232]
[1741404831380,0.0545223,86100.0,86099.0,0.3579232]
[1741404832229,0.01845079,86100.0,86099.0,0.1256332]
[1741404832401,0.0545496,86100.0,86099.0,0.1256332]
[1741404834967,0.0545496,86100.0,86099.0,0.0119532]
[1741404835174,0.0545496,86100.0,86099.0,0.0003392]
[1741404835792,0.03633616,86100.0,86099.0,0.0003392]
[1741404836005,0.04795016,86100.0,86099.0,0.0003392]
[1741404840023,0.06616626,86100.0,86099.0,0.0003392]
[1741404841465,0.08785773,86100.0,86099.0,0.0003392]
[1741404842305,0.06964163,86100.0,86099.0,0.0003392]
[1741404842510,0.06964163,86100.0,86099.0,0.00017252]
[1741404843068,0.0540985,86102.0,86099.0,0.00017252]
[1741404843308,0.243902,86100.0,86099.0,0.00017252]
[1741404843507,0.28004566,86100.0,86099.0,0.00017252]
[1741404849658,0.28021536,86100.0,86099.0,0.00017252]
[1741404850077,0.2984322,86100.0,86099.0,0.00017252]
[1741404850279,0.26228854,86100.0,86099.0,0.00017252]
[1741404850489,0.03000054,86100.0,86099.0,0.00017252]
[1741404850699,0.01838654,86100.0,86099.0,0.00017252]
[1741404851639,0.12241641,86100.0,86099.0,0.00017252]
[1741404852227,0.12241641,86100.0,86099.0,0.23246252]
[1741404852429,0.12241641,86100.0,86099.0,0.29267652]
[1741404852660,0.10419957,86100.0,86099.0,0.29267652]
[1741404853347,0.14032753,86100.0,86099.0,0.29267652]
[1741404853959,0.03629766,86100.0,86099.0,0.29267652]
[1741404854558,0.0001697,86100.0,86099.0,0.29267652]
[1741404855162,0.0001697,86100.0,86099.0,0.36877652]
[1741404858859,0.02184758,86100.0,86099.0,0.36877652]
[1741404859645,0.01664655,86114.0,86099.0,0.36877652]
[1741404859810,0.11474561,86118.0,86108.0,0.243877]
[1741404860377,0.011613,86110.0,86107.0,0.11368]
[1741404861544,0.011613,86108.0,86107.0,0.11368]
[1741404862317,0.26207211,86116.0,86107.0,0.11368]
[1741404862519,0.26207211,86116.0,86108.0,0.011613]
[1741404862843,0.02982511,86116.0,86109.0,0.243876]
[1741404863066,0.01821311,86116.0,86111.0,0.232257]
[1741404863271,0.011611,86118.0,86112.0,0.0793]
[1741404863469,0.011612,86116.0,86112.0,0.0793]
[1741404863673,0.02050492,86118.0,86112.0,0.090912]
[1741404863888,0.02050492,86118.0,86113.0,0.232252]
[1741404864081,0.02764984,86118.0,86113.0,0.232252]
[1741404864367,0.011611,86118.0,86113.0,0.232252]
[1741404864937,0.011611,86118.0,86113.0,0.243864]
[1741404865139,0.2323977,86123.0,86112.0,0.090912]
[1741404865140,0.0001697,86123.0,86122.0,0.011611]
[1741404865359,0.0001697,86123.0,86120.0,0.011611]
[1741404865533,0.0001697,86123.0,86119.0,0.243846]
[1741404865741,0.0001697,86123.0,86122.0,0.011611]
[1741404866728,0.0001697,86123.0,86122.0,0.090911]
[1741404868261,0.0001697,86123.0,86122.0,0.09207202]
[1741404869818,0.0001697,86128.0,86123.0,0.243837]
[1741404869819,1.32e-05,86128.0,86123.0,0.243837]
[1741404870047,0.00011617,86128.0,86124.0,0.00116099]
[1741404870462,0.01820985,86127.0,86124.0,0.00116099]
[1741404870639,0.01820985,86127.0,86125.0,0.23222]
[1741404870842,0.01820985,86127.0,86125.0,0.011611]
[1741404871650,0.02332,86126.0,86125.0,0.011611]
[1741404871793,0.01820985,86127.0,86125.0,0.011611]
[1741404871990,0.01820985,86127.0,86125.0,0.24383]
[1741404872571,0.02163234,86126.0,86125.0,0.011611]
[1741404875419,0.02163234,86126.0,86123.0,0.23723833]
[1741404875620,0.02163234,86126.0,86125.0,0.011611]
[1741404876228,0.02163234,86126.0,86125.0,0.093711]
[1741404877017,0.00011617,86128.0,86125.0,0.093711]
[1741404877237,0.00011617,86128.0,86127.0,0.01161]
[1741404877427,0.00011617,86128.0,86127.0,0.25405]
[1741404878209,0.03447263,86149.0,86144.0,0.011608]
[1741404878410,0.011607,86149.0,86144.0,0.011608]
[1741404879406,0.10371725,86148.0,86144.0,0.011608]
[1741404880227,0.36407203,86148.0,86143.0,0.0821]
[1741404880430,0.011608,86143.0,86139.0,0.11364]
[1741404880663,0.011608,86144.0,86139.0,0.11364]
[1741404880851,0.011608,86147.0,86140.0,0.011609]
[1741404881118,0.36407203,86148.0,86143.0,0.011608]
[1741404881119,0.13191203,86148.0,86143.0,0.011608]
[1741404881323,0.12030503,86148.0,86143.0,0.011608]
[1741404881502,0.12030503,86148.0,86147.0,0.011608]
[1741404882050,0.10371725,86148.0,86147.0,0.011608]
[1741404882990,0.10371725,86148.0,86145.0,0.011608]
[1741404882991,0.01820578,86148.0,86145.0,0.011608]
[1741404883211,0.01820578,86148.0,86146.0,0.243772]
[1741404883411,0.01820578,86148.0,86146.0,0.011608]
[1741404883613,0.01820578,86148.0,86145.0,0.011608]
[1741404883814,0.01820578,86148.0,86146.0,0.011608]
[1741404884015,0.232133,86158.0,86148.0,0.243764]
[1741404884217,0.243738,86158.0,86149.0,0.011607]
[1741404884439,0.011606,86157.0,86149.0,0.011607]
[1741404884632,0.01600421,86155.0,86149.0,0.011607]
[1741404884833,0.01600421,86155.0,86149.0,0.088907]
[1741404886530,0.0230375,86150.0,86149.0,0.0773]
[1741404886753,0.232175,86142.0,86140.0,0.0773]
[1741404886972,0.011608,86141.0,86140.0,0.0773]
[1741404887192,0.011609,86135.0,86133.0,0.0773]
[1741404887639,0.00510457,86134.0,86133.0,0.0773]
[1741404887871,0.011609,86139.0,86133.0,0.0773]
[1741404888122,0.02161575,86134.0,86133.0,0.0773]
[1741404888723,0.02161575,86134.0,86133.0,0.088909]
[1741404891226,0.02161575,86134.0,86131.0,0.01161]
[1741404891658,0.02161575,86134.0,86132.0,0.01161]
[1741404891881,0.02161575,86134.0,86133.0,0.011609]
[1741404892592,0.02161575,86134.0,86129.0,0.01161]
[1741404892801,0.02161575,86134.0,86130.0,0.01161]
[1741404893399,0.02161575,86134.0,86129.0,0.243819]
[1741404893677,0.02161575,86133.0,86127.0,0.324224]
[1741404894087,0.02161575,86133.0,86130.0,5e-05]
[1741404894295,0.01161,86131.0,86130.0,5e-05]
[1741404894400,0.04769829,86131.0,86130.0,5e-05]
[1741404895227,0.08752293,86131.0,86130.0,5e-05]
[1741404896683,0.06931404,86131.0,86130.0,5e-05]
[1741404896881,0.05770404,86131.0,86130.0,5e-05]
[1741404897512,0.05770404,86131.0,86130.0,0.0003894]
[1741404900216,0.06931404,86131.0,86130.0,0.0003894]
[1741404901043,0.07591375,86131.0,86130.0,0.0003894]
[1741404901478,0.08752375,86131.0,86130.0,0.0003894]
[1741404901838,0.07591375,86131.0,86130.0,0.0003894]
[1741404903282,0.05770404,86131.0,86130.0,0.0801894]
[1741404903843,0.06931404,86131.0,86130.0,0.0003894]
[1741404905210,0.19165489,86131.0,86130.0,0.0003894]
[1741404905416,0.30525489,86131.0,86130.0,0.0003894]
[1741404905570,0.50525489,86131.0,86130.0,4e-07]
[1741404905778,0.50525489,86131.0,86094.0,0.206355]
[1741404905779,0.011614,86100.0,86095.0,0.0798]
[1741404905979,0.243902,86100.0,86099.0,0.00028869]
[1741404906181,0.27998031,86100.0,86099.0,0.00028869]
[1741404908525,0.30012327,86100.0,86099.0,0.00028869]
[1741404909091,0.03607831,86100.0,86099.0,0.12258869]
[1741404909439,0.011612,86111.0,86101.0,0.232283]
[1741404909642,0.011613,86105.0,86099.0,0.12258869]
[1741404909814,0.011613,86103.0,86099.0,0.00028869]
[1741404910043,0.011614,86100.0,86099.0,0.00028869]
[1741404910213,0.232282,86102.0,86099.0,0.00028869]
[1741404910414,0.243902,86100.0,86099.0,0.00028869]
[1741404910615,0.011614,86101.0,86099.0,0.00028869]
[1741404911233,0.011613,86103.0,86099.0,0.00028869]
[1741404911429,0.232282,86102.0,86099.0,0.00028869]
[1741404911752,0.011614,86100.0,86099.0,0.00028869]
[1741404911954,0.011613,86103.0,86099.0,0.00028869]
[1741404912173,0.01821513,86102.0,86099.0,0.00028869]
[1741404912594,0.011613,86103.0,86099.0,0.00028869]
[1741404913041,0.232282,86102.0,86099.0,0.00028869]
[1741404913244,0.243902,86100.0,86099.0,0.00028869]
[1741404913658,0.011614,86100.0,86099.0,0.00028869]
[1741404920268,0.02983013,86100.0,86099.0,0.00028869]
[1741404923364,0.011614,86100.0,86099.0,0.00028869]
[1741404928223,0.06580392,86100.0,86099.0,0.00028869]
[1741404928587,0.04758731,86100.0,86099.0,0.00028869]
[1741404931126,0.06580346,86100.0,86099.0,0.00028869]
[1741404931970,0.07635461,86100.0,86099.0,0.00028869]
[1741404932172,0.05813846,86100.0,86099.0,0.00028869]
[1741404937066,0.07635464,86100.0,86099.0,0.00028869]
[1741404937663,0.00592929,86103.0,86099.0,0.00028869]
[1741404937932,0.04371382,86100.0,86099.0,0.00028869]
[1741404938105,0.07904135,86100.0,86099.0,0.00028869]
[1741404938673,0.31132935,86100.0,86099.0,0.00028869]
[1741404946435,0.3258702,86100.0,86099.0,0.00028869]
[1741404947648,0.31132935,86100.0,86099.0,0.00028869]
[1741404948233,0.34607892,86100.0,86099.0,0.00028869]
[1741404949062,0.36061977,86100.0,86099.0,0.00028869]
[1741404949584,0.011616,86085.0,86084.0,0.0751]
[1741404949786,0.011617,86080.0,86075.0,0.319071]
[1741404949929,0.243947,86084.0,86077.0,0.00038748]
[1741404949930,0.03608118,86079.0,86077.0,0.00038748]
[1741404950131,0.04569331,86078.0,86077.0,0.01200448]
[1741404950757,0.10215003,86078.0,86077.0,0.01200448]
[1741404951584,0.12205971,86078.0,86077.0,0.01200448]
[1741404951754,0.12205971,86078.0,86077.0,0.00038748]
[1741404953356,0.10215003,86078.0,86077.0,0.13570448]
[1741404953554,0.0925379,86078.0,86077.0,0.13570448]
[1741404957011,0.0925379,86078.0,86077.0,0.13686618]
[1741404957212,0.0925379,86078.0,86077.0,0.13570448]
[1741404957442,0.05645672,86078.0,86077.0,0.13570448]
[1741404958021,0.07467573,86078.0,86077.0,0.13604408]
[1741404959325,0.03992616,86078.0,86077.0,0.13604408]
[1741404959955,0.03992616,86078.0,86077.0,0.15420708]
[1741404960790,0.14400706,86078.0,86077.0,0.15420708]
[1741404961007,0.14400706,86078.0,86077.0,0.13604408]
[1741404961207,0.232291,86099.0,86092.0,0.011615]
[1741404961426,0.04773764,86098.0,86093.0,0.319021]
[1741404961632,0.03612364,86097.0,86093.0,0.319021]
[1741404962023,0.01347233,86096.0,86093.0,0.319021]
[1741404962207,0.03612364,86095.0,86093.0,0.319021]
[1741404962755,0.01347108,86094.0,86093.0,0.319021]
[1741404962951,0.03612364,86094.0,86093.0,0.319021]
[1741404963164,0.03612364,86097.0,86093.0,0.086715]
[1741404963392,0.04959597,86096.0,86093.0,0.086715]
[1741404963520,0.03612364,86095.0,86093.0,0.086715]
[1741404963722,0.01347108,86094.0,86093.0,0.086715]
[1741404963941,0.04959472,86094.0,86093.0,0.086715]
[1741404964766,0.03612364,86094.0,86093.0,0.086715]
[1741404965139,0.03612364,86097.0,86093.0,0.086715]
[1741404965483,0.04959597,86096.0,86093.0,0.086715]
[1741404965661,0.03612364,86095.0,86093.0,0.086715]
[1741404965859,0.03612364,86095.0,86093.0,0.31902]
[1741404966065,0.01347108,86094.0,86093.0,0.31902]
[1741404966269,0.04959472,86094.0,86093.0,0.31902]
[1741404966468,0.03612364,86094.0,86093.0,0.31902]
[1741404966705,0.03612364,86094.0,86093.0,0.086715]
[1741404966897,0.03612364,86097.0,86093.0,0.086715]
[1741404967101,0.03612364,86094.0,86093.0,0.086715]
[1741404967276,0.01347233,86096.0,86093.0,0.086715]
[1741404967478,0.03612364,86095.0,86093.0,0.086715]
[1741404967689,0.03612364,86095.0,86085.0,0.0773]
[1741404967690,0.011616,86086.0,86085.0,0.0773]
[1741404967896,0.243964,86078.0,86077.0,0.04932708]
[1741404968088,0.243964,86078.0,86077.0,0.00072708]
[1741404968295,0.25743749,86078.0,86077.0,0.00072708]
[1741404968532,0.29356666,86078.0,86077.0,0.00072708]
[1741404968655,0.31178633,86078.0,86077.0,0.00072708]
[1741404969115,0.34646447,86078.0,86077.0,0.00072708]
[1741404969320,0.10250047,86078.0,86077.0,0.00072708]
[1741404969526,0.11411747,86078.0,86077.0,0.00072708]
[1741404970190,0.10250047,86078.0,86077.0,0.32199408]
[1741404970401,0.10250047,86078.0,86077.0,0.36969408]
[1741404970608,0.05434884,86078.0,86077.0,0.36969408]
[1741404970788,0.01821967,86078.0,86077.0,0.36969408]
[1741404973759,0.10408634,86085.0,86084.0,0.321247]
[1741404973965,0.14025362,86085.0,86084.0,0.434847]
[1741404974165,0.11742194,86085.0,86084.0,0.434847]
[1741404974398,0.10408634,86085.0,86084.0,0.434847]
[1741404975009,0.12578838,86085.0,86084.0,0.434847]
[1741404975220,0.011616,86081.0,86077.0,0.12572708]
[1741404975439,0.03616736,86080.0,86077.0,0.12572708]
[1741404975648,0.03616736,86079.0,86078.0,0.232347]
[1741404975902,0.03616736,86079.0,86078.0,0.011617]
[1741404976101,0.03616736,86079.0,86077.0,0.13734408]
[1741404976102,0.03616736,86079.0,86077.0,0.12572708]
[1741404976308,0.03616736,86078.0,86077.0,0.12572708]
[1741404976506,0.01333692,86078.0,86077.0,0.12572708]
[1741404976687,0.04950428,86078.0,86077.0,0.12572708]
[1741404977149,0.07120632,86078.0,86077.0,0.12572708]
[1741404977598,0.08282332,86078.0,86077.0,0.00072708]
[1741404977805,0.09162233,86078.0,86077.0,0.00072708]
[1741404978060,0.10616318,86078.0,86077.0,0.00072708]
[1741404978509,0.244015,86060.0,86053.0,0.1136]
[1741404978681,0.28018236,86060.0,86059.0,0.00506755]
[1741404978905,0.2914757,86060.0,86059.0,0.00506755]
[1741404979852,0.31317774,86060.0,86059.0,0.00506755]
[1741404980328,0.33140101,86060.0,86059.0,0.00506755]
[1741404981425,0.34983905,86060.0,86059.0,0.00506755]
[1741404982279,0.33161578,86060.0,86059.0,0.00506755]
[1741404982484,0.13845579,86060.0,86059.0,0.00506755]
[1741404982651,0.05143342,86060.0,86059.0,0.00506755]
[1741404984433,0.06305242,86060.0,86059.0,0.00506755]
[1741404984890,0.05143342,86060.0,86059.0,0.00506755]
[1741404985101,0.03299538,86060.0,86059.0,0.24908455]
[1741404985503,0.02170204,86060.0,86059.0,0.24908455]
[1741404986331,0.02170204,86060.0,86059.0,0.32498455]
[1741404989050,0.02170204,86060.0,86059.0,0.5004336]
[1741404989051,1.3e-07,86060.0,86059.0,0.5004336]
[1741404989432,0.10385467,86081.0,86080.0,0.370659]
[1741404989656,0.10385467,86081.0,86080.0,0.484259]
[1741404989857,0.1168474,86081.0,86080.0,0.484259]
[1741404990064,0.10385467,86081.0,86080.0,0.484259]
[1741404990264,0.11687561,86081.0,86080.0,0.484259]
[1741404990667,0.10385467,86081.0,86080.0,0.484259]
[1741404992747,0.011615,86093.0,86086.0,0.011616]
[1741404992924,0.011615,86095.0,86088.0,0.011616]
[1741404993127,0.01303327,86092.0,86089.0,0.011615]
[1741404993326,0.243919,86094.0,86086.0,0.011616]
[1741404993537,0.232311,86092.0,86086.0,0.011616]
[1741404993851,0.01303035,86091.0,86087.0,0.011616]
[1741404994050,0.01303035,86091.0,86090.0,0.011615]
[1741404994248,0.12435841,86099.0,86093.0,0.011615]
[1741404994704,0.01303559,86096.0,86093.0,0.011615]
[1741404994941,0.011614,86098.0,86093.0,0.011615]
[1741404995151,0.11274441,86099.0,86095.0,0.243915]
[1741404995283,0.11274441,86099.0,86097.0,0.011614]
[1741404995486,0.10385467,86100.0,86097.0,0.011614]
[1741404995684,0.12245816,86100.0,86097.0,0.011614]
[1741404996305,0.12245816,86100.0,86095.0,0.243915]
[1741404996485,0.243911,86097.0,86090.0,0.243928]
[1741404996690,0.243918,86095.0,86084.0,0.011616]
[1741404997080,0.243918,86095.0,86088.0,0.011616]
[1741404997918,0.011614,86097.0,86091.0,0.243926]
[1741404998902,0.12245816,86100.0,86095.0,0.243914]
[1741404999112,0.03599468,86099.0,86096.0,0.011614]
[1741404999488,0.03599468,86099.0,86095.0,0.243914]
[1741404999692,0.06582642,86099.0,86092.0,0.243922]
[1741405000032,0.03599468,86098.0,86092.0,0.243922]
[1741405000383,0.03599468,86098.0,86093.0,0.011615]
[1741405000613,0.01309428,86097.0,86093.0,0.011615]
[1741405001239,0.26212274,86099.0,86093.0,0.011615]
[1741405001413,0.01309367,86096.0,86093.0,0.011615]
[1741405001617,0.26212274,86099.0,86093.0,0.011615]
[1741405001794,0.01309305,86095.0,86093.0,0.011615]
[1741405002008,0.10385467,86094.0,86093.0,0.011615]
[1741405002378,0.11694709,86094.0,86093.0,0.011615]
[1741405002705,0.11694709,86094.0,86091.0,0.011615]
[1741405002903,0.15015231,86094.0,86088.0,0.011616]
[1741405003756,0.243921,86093.0,86088.0,0.011616]
[1741405004159,0.01309137,86092.0,86088.0,0.011616]
[1741405004360,0.01309137,86092.0,86090.0,0.011615]
[1741405004563,0.01309137,86092.0,86091.0,0.243927]
[1741405005019,0.01309137,86092.0,86090.0,0.011615]
[1741405005242,0.011616,86087.0,86085.0,0.1136]
[1741405005446,0.011616,86087.0,86080.0,0.0003396]
[1741405005853,0.02470424,86087.0,86080.0,0.0003396]
[1741405006395,0.08083247,86087.0,86080.0,0.0003396]
[1741405007240,0.09905225,86087.0,86080.0,0.0003396]
[1741405007997,0.21187007,86087.0,86080.0,0.0003396]
[1741405008627,0.243955,86081.0,86080.0,0.0003396]
[1741405008832,0.29447282,86081.0,86080.0,0.0003396]
[1741405009123,0.34997313,86081.0,86080.0,0.0003396]
[1741405009295,0.011619,86065.0,86060.0,0.1138996]
[1741405009672,0.00929259,86064.0,86060.0,0.1138996]
[1741405009880,0.02767276,86064.0,86060.0,0.1138996]
[1741405010234,0.011619,86061.0,86060.0,0.1138996]
[1741405010439,0.0458953,86064.0,86063.0,0.011619]
[1741405010638,0.03660271,86064.0,86063.0,0.011619]
[1741405011353,0.12184945,86064.0,86061.0,0.011619]
[1741405011560,0.011618,86067.0,86062.0,0.011619]
[1741405011758,0.011618,86069.0,86063.0,0.011619]
[1741405011999,0.02055086,86069.0,86063.0,0.011619]
[1741405012644,0.05614082,86068.0,86063.0,0.011619]
[1741405013143,0.07464737,86068.0,86067.0,0.011618]
[1741405013529,0.07464737,86068.0,86064.0,0.244004]
[1741405013875,0.08626537,86068.0,86062.0,0.011619]
[1741405014095,0.08626537,86068.0,86062.0,0.244008]
[1741405014218,0.05614082,86067.0,86062.0,0.244008]
[1741405014426,0.011619,86064.0,86060.0,0.0003396]
[1741405014648,0.011619,86062.0,86060.0,0.0003396]
[1741405015471,0.05614082,86061.0,86060.0,0.0003396]
[1741405015676,0.06544238,86061.0,86060.0,0.0003396]
[1741405016572,0.08366666,86061.0,86060.0,0.0003396]
[1741405017144,0.08366666,86061.0,86060.0,0.0119586]
[1741405017550,0.0743651,86061.0,86060.0,0.0915586]
[1741405018913,0.0743651,86061.0,86060.0,0.1388586]
[1741405019327,0.0743651,86061.0,86060.0,0.14002048]
[1741405019952,0.0398169,86061.0,86060.0,0.14002048]
[1741405021749,0.01822428,86061.0,86060.0,0.14002048]
[1741405022341,0.02159262,86082.0,86081.0,0.243955]
[1741405022747,0.025,86116.0,86082.0,0.011616]
[1741405022748,0.0001698,86092.0,86082.0,0.011616]
[1741405022920,0.03600102,86091.0,86090.0,0.011615]
[1741405023328,0.0444233,86091.0,86090.0,0.011615]
[1741405023704,0.00842228,86091.0,86090.0,0.092015]
[1741405023929,0.00028591,86092.0,86091.0,0.243927]
[1741405026233,3.9e-07,86092.0,86091.0,0.243927]
[1741405027881,3.9e-07,86092.0,86091.0,0.370027]
[1741405028080,8.3e-07,86095.0,86094.0,0.290919]
[1741405028282,4.3e-07,86102.0,86101.0,0.13804531]
[1741405028434,4.3e-07,86102.0,86101.0,0.26492427]
[1741405028631,4.3e-07,86102.0,86101.0,0.26376305]
[1741405031297,0.09863943,86117.0,86116.0,0.243856]
[1741405031479,0.09902688,86117.0,86116.0,0.357416]
[1741405032058,0.09902688,86117.0,86116.0,0.60956505]